[Event "Titled Tuesday Blitz August 1 Early 2023"]
[White "Ahmad, Khagan"]
[Black "Djordjevic, Vuk"]
[WhiteFideId "13431552"]
[BlackFideId "902098"]
[WhiteElo "2581"]
[BlackElo "2744"]
[Result "1-0"]
[Round "11"]
[TimeControl "180+1"]
[Date "2023.08.01"]
[WhiteClock "0:00:06"]
[BlackClock "0:00:04"]
[Board "42"]

1. c4 {[%clk 0:02:59]}  e5 {[%clk 0:03:00]} 2. Nc3 {[%clk 0:02:55]}  Nc6 {[%clk 0:03:00]} 3. Nf3 {[%clk 0:02:55]}  g6 {[%clk 0:03:00]} 4. e3 {[%clk 0:02:55]}  Bg7 {[%clk 0:03:00]} 5. d4 {[%clk 0:02:56]}  exd4 {[%clk 0:03:00]} 6. exd4 {[%clk 0:02:57]}  Nge7 {[%clk 0:02:59]} 7. d5 {[%clk 0:02:54]}  Ne5 {[%clk 0:02:59]} 8. Nxe5 {[%clk 0:02:54]}  Bxe5 {[%clk 0:03:00]} 9. Be2 {[%clk 0:02:51]}  O-O {[%clk 0:03:00]} 10. Bg5 {[%clk 0:02:48]}  d6 {[%clk 0:02:55]} 11. O-O {[%clk 0:02:41]}  Re8 {[%clk 0:02:55]} 12. Ne4 {[%clk 0:02:31]}  Kg7 {[%clk 0:02:43]} 13. f4 {[%clk 0:02:01]}  f6 {[%clk 0:02:43]} 14. fxe5 {[%clk 0:01:56]}  fxg5 {[%clk 0:02:43]} 15. e6 {[%clk 0:01:53]}  Nf5 {[%clk 0:02:41]} 16. Rxf5 {[%clk 0:01:30]}  gxf5 {[%clk 0:02:31]} 17. Qd4+ {[%clk 0:01:29]}  Kh6 {[%clk 0:01:58]} 18. Ng3 {[%clk 0:01:16]}  Rf8 {[%clk 0:01:57]} 19. Bd3 {[%clk 0:01:02]}  c5 {[%clk 0:01:35]} 20. Nxf5+ {[%clk 0:00:58]}  Rxf5 {[%clk 0:01:27]} 21. Qe4 {[%clk 0:00:57]}  Qf6 {[%clk 0:00:49]} 22. Qxf5 {[%clk 0:00:56]}  Qxf5 {[%clk 0:00:50]} 23. Bxf5 {[%clk 0:00:56]}  b5 {[%clk 0:00:36]} 24. Re1 {[%clk 0:00:47]}  bxc4 {[%clk 0:00:28]} 25. e7 {[%clk 0:00:29]}  Bxf5 {[%clk 0:00:26]} 26. e8=Q {[%clk 0:00:28]}  Rxe8 {[%clk 0:00:24]} 27. Rxe8 {[%clk 0:00:29]}  Kg6 {[%clk 0:00:24]} 28. Rd8 {[%clk 0:00:27]}  Kf6 {[%clk 0:00:24]} 29. Rxd6+ {[%clk 0:00:26]}  Ke5 {[%clk 0:00:24]} 30. Ra6 {[%clk 0:00:25]}  Kxd5 {[%clk 0:00:24]} 31. Rxa7 {[%clk 0:00:26]}  Kd4 {[%clk 0:00:14]} 32. Kf2 {[%clk 0:00:19]}  c3 {[%clk 0:00:13]} 33. bxc3+ {[%clk 0:00:18]}  Kxc3 {[%clk 0:00:14]} 34. Ke3 {[%clk 0:00:19]}  Kb4 {[%clk 0:00:07]} 35. a4 {[%clk 0:00:17]}  c4 {[%clk 0:00:06]} 36. Kd4 {[%clk 0:00:17]}  Bd3 {[%clk 0:00:03]} 37. a5 {[%clk 0:00:13]}  Kb5 {[%clk 0:00:04]} 38. Kc3 {[%clk 0:00:10]}  Be4 {[%clk 0:00:03]} 39. Re7 {[%clk 0:00:08]}  Bxg2 {[%clk 0:00:03]} 40. Re5+ {[%clk 0:00:07]}  Ka6 {[%clk 0:00:02]} 41. Rxg5 {[%clk 0:00:06]}  Bf1 {[%clk 0:00:03]} 42. Rh5 {[%clk 0:00:04]}  Bd3 {[%clk 0:00:03]} 43. h4 {[%clk 0:00:03]}  Bg6 {[%clk 0:00:02]} 44. Rc5 {[%clk 0:00:02]}  Bd3 {[%clk 0:00:02]} 45. Kb4 {[%clk 0:00:03]}  Be2 {[%clk 0:00:02]} 46. Rc6+ {[%clk 0:00:03]}  Kb7 {[%clk 0:00:03]} 47. Rh6 {[%clk 0:00:02]}  Bd3 {[%clk 0:00:02]} 48. Kc5 {[%clk 0:00:01]}  Ka7 {[%clk 0:00:03]} 49. Kb4 {[%clk 0:00:02]}  Kb7 {[%clk 0:00:03]} 50. Rf6 {[%clk 0:00:02]}  Ka7 {[%clk 0:00:03]} 51. h5 {[%clk 0:00:03]}  Kb7 {[%clk 0:00:03]} 52. h6 {[%clk 0:00:03]}  Ka7 {[%clk 0:00:03]} 53. Rf7+ {[%clk 0:00:04]}  Ka6 {[%clk 0:00:04]} 54. Rg7 {[%clk 0:00:04]}  Bf5 {[%clk 0:00:02]} 55. Kxc4 {[%clk 0:00:03]}  Bb1 {[%clk 0:00:01]} 56. Kb4 {[%clk 0:00:02]}  Bc2 {[%clk 0:00:01]} 57. Re7 {[%clk 0:00:02]}  Bb1 {[%clk 0:00:01]} 58. Re6+ {[%clk 0:00:02]}  Ka7 {[%clk 0:00:01]} 59. Kc5 {[%clk 0:00:02]}  Bd3 {[%clk 0:00:02]} 60. Rd6 {[%clk 0:00:02]}  Bc2 {[%clk 0:00:02]} 61. Kd5 {[%clk 0:00:02]}  Kb7 {[%clk 0:00:01]} 62. Ke5 {[%clk 0:00:03]}  Kc7 {[%clk 0:00:02]} 63. a6 {[%clk 0:00:03]}  Kb8 {[%clk 0:00:02]} 64. Kf6 {[%clk 0:00:03]}  Ka7 {[%clk 0:00:03]} 65. Kg7 {[%clk 0:00:04]}  Bb1 {[%clk 0:00:03]} 66. Rc6 {[%clk 0:00:04]}  Be4 {[%clk 0:00:03]} 67. Re6 {[%clk 0:00:03]}  Bf5 {[%clk 0:00:03]} 68. Rf6 {[%clk 0:00:03]}  Bd3 {[%clk 0:00:03]} 69. Rf8 {[%clk 0:00:03]}  Kxa6 {[%clk 0:00:03]} 70. Rh8 {[%clk 0:00:04]}  Kb6 {[%clk 0:00:04]} 71. Rxh7 {[%clk 0:00:05]}  Kc6 {[%clk 0:00:04]} 72. Rh8 {[%clk 0:00:05]}  Kd6 {[%clk 0:00:04]} 73. Rf8 {[%clk 0:00:06]} 1-0


[Site "https://www.chess.com"]

[Event "Titled Tuesday Blitz August 1 Early 2023"]
[White "Matinian, Nikita"]
[Black "Demin, Vladimir"]
[WhiteFideId "24129100"]
[BlackFideId "4167457"]
[WhiteElo "2742"]
[BlackElo "2569"]
[Result "1/2-1/2"]
[Round "11"]
[TimeControl "180+1"]
[Date "2023.08.01"]
[WhiteClock "0:00:04"]
[BlackClock "0:00:06"]
[Board "43"]

1. e4 {[%clk 0:02:56]}  e5 {[%clk 0:02:57]} 2. Nf3 {[%clk 0:02:55]}  Nc6 {[%clk 0:02:56]} 3. Bb5 {[%clk 0:02:55]}  a6 {[%clk 0:02:55]} 4. Ba4 {[%clk 0:02:56]}  Bc5 {[%clk 0:02:56]} 5. c3 {[%clk 0:02:54]}  Nge7 {[%clk 0:02:56]} 6. d4 {[%clk 0:02:53]}  exd4 {[%clk 0:02:56]} 7. cxd4 {[%clk 0:02:54]}  Bb4+ {[%clk 0:02:56]} 8. Bd2 {[%clk 0:02:54]}  Bxd2+ {[%clk 0:02:56]} 9. Nbxd2 {[%clk 0:02:55]}  d5 {[%clk 0:02:56]} 10. e5 {[%clk 0:02:55]}  Bg4 {[%clk 0:02:55]} 11. h3 {[%clk 0:02:52]}  Bh5 {[%clk 0:02:55]} 12. Bxc6+ {[%clk 0:02:47]}  Nxc6 {[%clk 0:02:52]} 13. g4 {[%clk 0:02:42]}  Bg6 {[%clk 0:02:51]} 14. Rc1 {[%clk 0:02:42]}  O-O {[%clk 0:02:43]} 15. Qb3 {[%clk 0:02:43]}  Rb8 {[%clk 0:02:40]} 16. O-O {[%clk 0:02:40]}  f6 {[%clk 0:02:35]} 17. e6 {[%clk 0:02:40]}  Qd6 {[%clk 0:02:32]} 18. Rfe1 {[%clk 0:02:39]}  Rfe8 {[%clk 0:02:32]} 19. Rc5 {[%clk 0:02:24]}  Nxd4 {[%clk 0:02:25]} 20. Qxd5 {[%clk 0:02:23]}  Qxd5 {[%clk 0:02:19]} 21. Rxd5 {[%clk 0:02:23]}  Nxe6 {[%clk 0:02:17]} 22. Kh2 {[%clk 0:02:15]}  Bf7 {[%clk 0:02:10]} 23. Kg3 {[%clk 0:02:13]}  Rbd8 {[%clk 0:02:09]} 24. Rxd8 {[%clk 0:02:13]}  Rxd8 {[%clk 0:02:10]} 25. Ne4 {[%clk 0:02:08]}  Kf8 {[%clk 0:01:57]} 26. Re3 {[%clk 0:02:08]}  c5 {[%clk 0:01:52]} 27. a3 {[%clk 0:02:03]}  b5 {[%clk 0:01:49]} 28. Nh4 {[%clk 0:02:01]}  c4 {[%clk 0:01:45]} 29. Nf5 {[%clk 0:02:01]}  Nd4 {[%clk 0:01:40]} 30. f3 {[%clk 0:01:07]}  Nxf5+ {[%clk 0:01:33]} 31. gxf5 {[%clk 0:01:08]}  Rd5 {[%clk 0:01:31]} 32. Kf4 {[%clk 0:01:08]}  Be8 {[%clk 0:01:29]} 33. Nc3 {[%clk 0:01:08]}  Rd4+ {[%clk 0:01:27]} 34. Re4 {[%clk 0:01:08]}  Rxe4+ {[%clk 0:01:24]} 35. fxe4 {[%clk 0:01:09]}  Bc6 {[%clk 0:01:24]} 36. Ne2 {[%clk 0:01:01]}  Ke7 {[%clk 0:01:22]} 37. Nd4 {[%clk 0:01:01]}  Bd7 {[%clk 0:01:22]} 38. h4 {[%clk 0:00:59]}  g6 {[%clk 0:01:22]} 39. Ne2 {[%clk 0:00:48]}  Kd6 {[%clk 0:01:19]} 40. Nc3 {[%clk 0:00:48]}  Bc6 {[%clk 0:01:13]} 41. Nd1 {[%clk 0:00:42]}  Kc5 {[%clk 0:01:05]} 42. Ne3 {[%clk 0:00:42]}  Kd4 {[%clk 0:01:03]} 43. Nc2+ {[%clk 0:00:37]}  Kc5 {[%clk 0:01:01]} 44. Ne3 {[%clk 0:00:37]}  Kd6 {[%clk 0:00:47]} 45. Ng4 {[%clk 0:00:33]}  Ke7 {[%clk 0:00:47]} 46. fxg6 {[%clk 0:00:29]}  hxg6 {[%clk 0:00:46]} 47. e5 {[%clk 0:00:29]}  fxe5+ {[%clk 0:00:37]} 48. Kxe5 {[%clk 0:00:30]}  Be8 {[%clk 0:00:34]} 49. Ne3 {[%clk 0:00:27]}  Bf7 {[%clk 0:00:31]} 50. Nc2 {[%clk 0:00:25]}  a5 {[%clk 0:00:29]} 51. Nd4 {[%clk 0:00:26]}  Be8 {[%clk 0:00:29]} 52. Kd5 {[%clk 0:00:25]}  Kf6 {[%clk 0:00:10]} 53. Kc5 {[%clk 0:00:25]}  b4 {[%clk 0:00:06]} 54. axb4 {[%clk 0:00:25]}  axb4 {[%clk 0:00:07]} 55. Kxc4 {[%clk 0:00:21]}  Ke5 {[%clk 0:00:06]} 56. Ne2 {[%clk 0:00:17]}  Ke4 {[%clk 0:00:03]} 57. Kxb4 {[%clk 0:00:17]}  Kf3 {[%clk 0:00:04]} 58. Nd4+ {[%clk 0:00:10]}  Kg4 {[%clk 0:00:04]} 59. Kc5 {[%clk 0:00:07]}  Kxh4 {[%clk 0:00:05]} 60. b4 {[%clk 0:00:08]}  g5 {[%clk 0:00:05]} 61. Nf3+ {[%clk 0:00:03]}  Kg4 {[%clk 0:00:05]} 62. Nxg5 {[%clk 0:00:03]}  Kxg5 {[%clk 0:00:06]} 63. b5 {[%clk 0:00:04]}  Bxb5 {[%clk 0:00:06]} 1/2-1/2


[Site "https://www.chess.com"]

[Event "Titled Tuesday Blitz August 1 Early 2023"]
[White "Starozhilov, Leonid"]
[Black "Postlmayer, Jakob"]
[WhiteFideId "14106752"]
[BlackFideId "1643622"]
[WhiteElo "2738"]
[BlackElo "2561"]
[Result "0-1"]
[Round "11"]
[TimeControl "180+1"]
[Date "2023.08.01"]
[WhiteClock "0:00:00"]
[BlackClock "0:01:02"]
[Board "44"]

1. e4 {[%clk 0:03:00]}  c6 {[%clk 0:02:57]} 2. Nc3 {[%clk 0:02:59]}  d5 {[%clk 0:02:58]} 3. Nf3 {[%clk 0:03:00]}  dxe4 {[%clk 0:02:58]} 4. Nxe4 {[%clk 0:03:01]}  Nf6 {[%clk 0:02:59]} 5. Qe2 {[%clk 0:03:01]}  Nxe4 {[%clk 0:02:58]} 6. Qxe4 {[%clk 0:03:02]}  Nd7 {[%clk 0:02:59]} 7. Bc4 {[%clk 0:03:02]}  Nf6 {[%clk 0:02:59]} 8. Ne5 {[%clk 0:03:02]}  e6 {[%clk 0:02:59]} 9. Qe2 {[%clk 0:03:03]}  b5 {[%clk 0:02:58]} 10. Bb3 {[%clk 0:03:03]}  Qc7 {[%clk 0:02:50]} 11. d4 {[%clk 0:03:01]}  Bd6 {[%clk 0:02:49]} 12. Bg5 {[%clk 0:02:59]}  Nd5 {[%clk 0:02:31]} 13. Bxd5 {[%clk 0:02:56]}  cxd5 {[%clk 0:02:24]} 14. Qxb5+ {[%clk 0:02:56]}  Kf8 {[%clk 0:02:18]} 15. Be3 {[%clk 0:02:13]}  f6 {[%clk 0:02:14]} 16. Nf3 {[%clk 0:01:55]}  Rb8 {[%clk 0:02:10]} 17. Qd3 {[%clk 0:01:36]}  Rxb2 {[%clk 0:02:08]} 18. Rc1 {[%clk 0:01:22]}  Qa5+ {[%clk 0:01:52]} 19. Bd2 {[%clk 0:01:21]}  Qa6 {[%clk 0:01:51]} 20. Qc3 {[%clk 0:01:18]}  Rxa2 {[%clk 0:01:44]} 21. h4 {[%clk 0:01:07]}  Kf7 {[%clk 0:01:39]} 22. h5 {[%clk 0:00:56]}  Bd7 {[%clk 0:01:38]} 23. h6 {[%clk 0:00:54]}  g6 {[%clk 0:01:38]} 24. Rh4 {[%clk 0:00:48]}  Rc8 {[%clk 0:01:32]} 25. Qb3 {[%clk 0:00:28]}  Ra1 {[%clk 0:01:25]} 26. g4 {[%clk 0:00:16]}  Rxc1+ {[%clk 0:01:24]} 27. Bxc1 {[%clk 0:00:17]}  Qa5+ {[%clk 0:01:16]} 28. Kd1 {[%clk 0:00:16]}  Ba4 {[%clk 0:01:13]} 29. Qb7+ {[%clk 0:00:07]}  Rc7 {[%clk 0:01:13]} 30. Qa8 {[%clk 0:00:05]}  Bxc2+ {[%clk 0:01:10]} 31. Ke2 {[%clk 0:00:05]}  Qa6+ {[%clk 0:01:06]} 32. Ke1 {[%clk 0:00:00]}  Rc8 {[%clk 0:01:02]} 0-1


[Site "https://www.chess.com"]

[Event "Titled Tuesday Blitz August 1 Early 2023"]
[White "Heinemann, Josefine"]
[Black "Xu, Yi"]
[WhiteFideId "12900460"]
[BlackFideId "8605564"]
[WhiteElo "2552"]
[BlackElo "2729"]
[Result "1-0"]
[Round "11"]
[TimeControl "180+1"]
[Date "2023.08.01"]
[WhiteClock "0:00:14"]
[BlackClock "0:00:00"]
[Board "45"]

1. e4 {[%clk 0:03:00]}  c5 {[%clk 0:02:59]} 2. c3 {[%clk 0:02:52]}  Nf6 {[%clk 0:02:58]} 3. e5 {[%clk 0:02:52]}  Nd5 {[%clk 0:02:58]} 4. Nf3 {[%clk 0:02:52]}  d6 {[%clk 0:02:55]} 5. Bb5+ {[%clk 0:02:51]}  Bd7 {[%clk 0:02:50]} 6. Bc4 {[%clk 0:02:51]}  Bc6 {[%clk 0:02:35]} 7. d4 {[%clk 0:02:48]}  e6 {[%clk 0:02:32]} 8. O-O {[%clk 0:02:48]}  Be7 {[%clk 0:02:28]} 9. Bb3 {[%clk 0:02:45]}  O-O {[%clk 0:02:26]} 10. c4 {[%clk 0:02:44]}  Nb6 {[%clk 0:02:22]} 11. d5 {[%clk 0:02:45]}  exd5 {[%clk 0:02:17]} 12. cxd5 {[%clk 0:02:46]}  Bd7 {[%clk 0:02:10]} 13. e6 {[%clk 0:02:41]}  fxe6 {[%clk 0:02:05]} 14. dxe6 {[%clk 0:02:42]}  Bc6 {[%clk 0:02:05]} 15. Nfd2 {[%clk 0:02:22]}  d5 {[%clk 0:02:03]} 16. Nc3 {[%clk 0:02:19]}  Qd6 {[%clk 0:02:02]} 17. Re1 {[%clk 0:02:17]}  Na6 {[%clk 0:01:56]} 18. Qh5 {[%clk 0:02:16]}  Rf6 {[%clk 0:01:52]} 19. Bc2 {[%clk 0:02:12]}  Rh6 {[%clk 0:01:47]} 20. Qf7+ {[%clk 0:02:03]}  Kh8 {[%clk 0:01:47]} 21. Nf3 {[%clk 0:02:03]}  Rf8 {[%clk 0:01:38]} 22. Ne5 {[%clk 0:01:52]}  Be8 {[%clk 0:00:55]} 23. Qxe8 {[%clk 0:01:05]}  Rxe8 {[%clk 0:00:34]} 24. Nf7+ {[%clk 0:01:05]}  Kg8 {[%clk 0:00:34]} 25. Nxd6 {[%clk 0:01:06]}  Bxd6 {[%clk 0:00:35]} 26. Bxh6 {[%clk 0:01:06]}  gxh6 {[%clk 0:00:35]} 27. Rad1 {[%clk 0:00:48]}  d4 {[%clk 0:00:17]} 28. Nb5 {[%clk 0:00:36]}  Bb8 {[%clk 0:00:17]} 29. Be4 {[%clk 0:00:33]}  Re7 {[%clk 0:00:12]} 30. a3 {[%clk 0:00:28]}  Kf8 {[%clk 0:00:11]} 31. b4 {[%clk 0:00:25]}  cxb4 {[%clk 0:00:07]} 32. axb4 {[%clk 0:00:26]}  Nc7 {[%clk 0:00:02]} 33. Nxc7 {[%clk 0:00:25]}  Bxc7 {[%clk 0:00:02]} 34. Bxb7 {[%clk 0:00:22]}  Bd6 {[%clk 0:00:01]} 35. Rxd4 {[%clk 0:00:19]}  Bc7 {[%clk 0:00:01]} 36. Bf3 {[%clk 0:00:16]}  Ke8 {[%clk 0:00:01]} 37. g3 {[%clk 0:00:16]}  a6 {[%clk 0:00:01]} 38. Kg2 {[%clk 0:00:17]}  Nc8 {[%clk 0:00:02]} 39. h4 {[%clk 0:00:17]}  Nd6 {[%clk 0:00:02]} 40. Bc6+ {[%clk 0:00:17]}  Kf8 {[%clk 0:00:02]} 41. f4 {[%clk 0:00:17]}  Kg7 {[%clk 0:00:02]} 42. g4 {[%clk 0:00:16]}  Kf6 {[%clk 0:00:03]} 43. f5 {[%clk 0:00:16]}  Bb8 {[%clk 0:00:02]} 44. Kf3 {[%clk 0:00:16]}  Rc7 {[%clk 0:00:02]} 45. Be4 {[%clk 0:00:14]}  Rc3+ {[%clk 0:00:02]} 46. Kg2 {[%clk 0:00:13]}  Ba7 {[%clk 0:00:00]} 47. Rxd6 {[%clk 0:00:14]} 1-0


[Site "https://www.chess.com"]

[Event "Titled Tuesday Blitz August 1 Early 2023"]
[White "Dimitrov, Atanas"]
[Black "Souleidis, Georgios"]
[WhiteFideId "2901315"]
[BlackFideId "4206827"]
[WhiteElo "2707"]
[BlackElo "2555"]
[Result "1/2-1/2"]
[Round "11"]
[TimeControl "180+1"]
[Date "2023.08.01"]
[WhiteClock "0:00:02"]
[BlackClock "0:00:13"]
[Board "46"]

1. Nf3 {[%clk 0:03:00]}  Nf6 {[%clk 0:02:57]} 2. c4 {[%clk 0:02:59]}  g6 {[%clk 0:02:57]} 3. b3 {[%clk 0:02:55]}  Bg7 {[%clk 0:02:58]} 4. Bb2 {[%clk 0:02:46]}  O-O {[%clk 0:02:58]} 5. e3 {[%clk 0:02:47]}  c5 {[%clk 0:02:58]} 6. Nc3 {[%clk 0:02:43]}  b6 {[%clk 0:02:58]} 7. Be2 {[%clk 0:02:42]}  Bb7 {[%clk 0:02:59]} 8. O-O {[%clk 0:02:43]}  Nc6 {[%clk 0:02:53]} 9. Rc1 {[%clk 0:02:41]}  Rc8 {[%clk 0:02:53]} 10. d4 {[%clk 0:02:32]}  cxd4 {[%clk 0:02:53]} 11. Nxd4 {[%clk 0:02:32]}  Nxd4 {[%clk 0:02:48]} 12. Qxd4 {[%clk 0:02:33]}  Ne4 {[%clk 0:02:37]} 13. Qd3 {[%clk 0:02:30]}  Nxc3 {[%clk 0:02:37]} 14. Bxc3 {[%clk 0:02:30]}  Bxc3 {[%clk 0:02:36]} 15. Rxc3 {[%clk 0:02:26]}  d5 {[%clk 0:02:36]} 16. Bf3 {[%clk 0:01:58]}  e6 {[%clk 0:02:01]} 17. cxd5 {[%clk 0:01:47]}  Rxc3 {[%clk 0:02:00]} 18. Qxc3 {[%clk 0:01:47]}  Bxd5 {[%clk 0:02:00]} 19. Rd1 {[%clk 0:01:45]}  Qc8 {[%clk 0:01:45]} 20. Qxc8 {[%clk 0:01:39]}  Rxc8 {[%clk 0:01:46]} 21. Bxd5 {[%clk 0:01:39]}  exd5 {[%clk 0:01:46]} 22. g3 {[%clk 0:01:40]}  Rc2 {[%clk 0:01:45]} 23. a4 {[%clk 0:01:36]}  Rb2 {[%clk 0:01:40]} 24. Rd3 {[%clk 0:01:34]}  Kf8 {[%clk 0:01:39]} 25. Kg2 {[%clk 0:01:31]}  Ke7 {[%clk 0:01:39]} 26. Rxd5 {[%clk 0:01:13]}  Rxb3 {[%clk 0:01:39]} 27. a5 {[%clk 0:01:14]}  Ke6 {[%clk 0:01:35]} 28. e4 {[%clk 0:01:10]}  b5 {[%clk 0:01:25]} 29. a6 {[%clk 0:00:58]}  f5 {[%clk 0:01:09]} 30. f3 {[%clk 0:00:55]}  Rb2+ {[%clk 0:01:07]} 31. Kh3 {[%clk 0:00:54]}  fxe4 {[%clk 0:01:08]} 32. fxe4 {[%clk 0:00:54]}  Ra2 {[%clk 0:00:43]} 33. Rxb5 {[%clk 0:00:52]}  Rxa6 {[%clk 0:00:43]} 34. Kg4 {[%clk 0:00:52]}  Ra2 {[%clk 0:00:38]} 35. h4 {[%clk 0:00:51]}  a5 {[%clk 0:00:31]} 36. Kf4 {[%clk 0:00:49]}  a4 {[%clk 0:00:31]} 37. Rb6+ {[%clk 0:00:49]}  Kf7 {[%clk 0:00:31]} 38. Rb7+ {[%clk 0:00:49]}  Kg8 {[%clk 0:00:31]} 39. Kg5 {[%clk 0:00:39]}  Re2 {[%clk 0:00:31]} 40. Kf6 {[%clk 0:00:27]}  Rf2+ {[%clk 0:00:31]} 41. Ke6 {[%clk 0:00:27]}  a3 {[%clk 0:00:30]} 42. Ra7 {[%clk 0:00:26]}  a2 {[%clk 0:00:31]} 43. e5 {[%clk 0:00:27]}  h6 {[%clk 0:00:20]} 44. Kd6 {[%clk 0:00:21]}  Rd2+ {[%clk 0:00:19]} 45. Ke7 {[%clk 0:00:19]}  Kg7 {[%clk 0:00:20]} 46. e6 {[%clk 0:00:18]}  g5 {[%clk 0:00:19]} 47. h5 {[%clk 0:00:15]}  g4 {[%clk 0:00:19]} 48. Ke8+ {[%clk 0:00:13]}  Kg8 {[%clk 0:00:19]} 49. e7 {[%clk 0:00:11]}  Kg7 {[%clk 0:00:19]} 50. Ra6 {[%clk 0:00:10]}  Kg8 {[%clk 0:00:12]} 51. Ra4 {[%clk 0:00:09]}  Kh7 {[%clk 0:00:11]} 52. Kf7 {[%clk 0:00:08]}  Rf2+ {[%clk 0:00:12]} 53. Ke6 {[%clk 0:00:09]}  Re2+ {[%clk 0:00:12]} 54. Kd6 {[%clk 0:00:08]}  Rd2+ {[%clk 0:00:12]} 55. Kc7 {[%clk 0:00:05]}  Rc2+ {[%clk 0:00:13]} 56. Kd8 {[%clk 0:00:05]}  Rd2+ {[%clk 0:00:13]} 57. Kc8 {[%clk 0:00:06]}  Rc2+ {[%clk 0:00:13]} 58. Kd8 {[%clk 0:00:04]}  Rd2+ {[%clk 0:00:13]} 59. Ke8 {[%clk 0:00:05]}  Re2 {[%clk 0:00:12]} 60. Kf7 {[%clk 0:00:02]}  Rf2+ {[%clk 0:00:12]} 61. Ke6 {[%clk 0:00:03]}  Re2+ {[%clk 0:00:12]} 62. Kf7 {[%clk 0:00:02]}  Rf2+ {[%clk 0:00:13]} 1/2-1/2


[Site "https://www.chess.com"]

[Event "Titled Tuesday Blitz August 1 Early 2023"]
[White "Golubev, Mikhail"]
[Black "nickVet"]
[WhiteFideId "14100983"]
[WhiteElo "2548"]
[BlackElo "2703"]
[Result "1-0"]
[Round "11"]
[TimeControl "180+1"]
[Date "2023.08.01"]
[WhiteClock "0:01:26"]
[BlackClock "0:02:04"]
[Board "47"]

1. e4 {[%clk 0:03:00]}  c5 {[%clk 0:02:59]} 2. Nf3 {[%clk 0:03:00]}  e6 {[%clk 0:02:59]} 3. d4 {[%clk 0:03:00]}  cxd4 {[%clk 0:03:00]} 4. Nxd4 {[%clk 0:03:01]}  Nc6 {[%clk 0:03:01]} 5. Nc3 {[%clk 0:03:01]}  Qc7 {[%clk 0:03:01]} 6. Be3 {[%clk 0:03:00]}  a6 {[%clk 0:03:02]} 7. Bd3 {[%clk 0:02:59]}  Nf6 {[%clk 0:03:00]} 8. O-O {[%clk 0:02:59]}  Be7 {[%clk 0:02:52]} 9. f4 {[%clk 0:02:56]}  d6 {[%clk 0:02:50]} 10. Qf3 {[%clk 0:02:52]}  O-O {[%clk 0:02:48]} 11. Rae1 {[%clk 0:02:33]}  Kh8 {[%clk 0:02:48]} 12. Qg3 {[%clk 0:02:18]}  Nxd4 {[%clk 0:02:38]} 13. Bxd4 {[%clk 0:02:18]}  b5 {[%clk 0:02:39]} 14. e5 {[%clk 0:02:03]}  dxe5 {[%clk 0:02:38]} 15. fxe5 {[%clk 0:02:04]}  Bc5 {[%clk 0:02:39]} 16. Bxc5 {[%clk 0:01:55]}  Qxc5+ {[%clk 0:02:38]} 17. Kh1 {[%clk 0:01:55]}  Nd7 {[%clk 0:02:35]} 18. Qh4 {[%clk 0:01:41]}  g6 {[%clk 0:02:30]} 19. Ne4 {[%clk 0:01:35]}  Qxe5 {[%clk 0:02:04]} 20. Nf6 {[%clk 0:01:26]} 1-0


[Site "https://www.chess.com"]